[Event "ESP-chT Div I 2018"]
[Site "Linares"]
[Date "2018.08.07"]
[Round "2"]
[White "Rivas Garcia, Victor"]
[Black "Martin Duque, Jesus"]
[Result "0-1"]
[ECO "C50"]
[WhiteElo "2217"]
[BlackElo "2378"]
[Annotator "NA"]
[PlyCount "86"]
[EventDate "2018.08.06"]
[EventType "team-tourn"]
[EventCountry "ESP"]
[SourceTitle "playchess.com"]
[Source "ChessBase"]
[SourceQuality "1"]
[TimeControl "40/5400+30:1800+30"]

1. e4 {[%emt 0:00:00]} e5 {[%emt 0:00:00]} 2. Bc4 {[%emt 0:00:15]} Nf6 {[%emt 0:00:00]} 3. d3 {[%emt 0:00:09]} Nc6 {[%emt 0:00:00]} 4. Nf3 {[%emt 0:00:08]} Bc5 {[%emt 0:00:00]} 5. c3 {[%emt 0:00:31]} O-O {[%emt 0:00:03]} 6. Bb3 {[%emt 0:00:34]} h6 {[%emt 0:00:05]} 7. h3 {[%emt 0:01:00]} d5 {[%emt 0:00:20]} 8. exd5 {[%emt 0:00:42]} Nxd5 {[%emt 0:00:04]} 9. O-O {[%emt 0:00:34]} Bf5 {[%emt 0:00:01]} 10. Re1 {[%emt 0:02:24]} Qd6 {[%emt 0:00:15]} 11. Bc2 {[%emt 0:13:37]} Rfe8 {[%emt 0:01:31]} 12. Nbd2 {[%emt 0:01:40]} Qd7 {[%emt 0:15:06]} 13. Ne4 {[%emt 0:09:14]} Bb6 {[%emt 0:07:07]} 14. Bb3 {[%emt 0:11:07]} Nf4 {[%emt 0:06:50]} 15. Bxf4 {[%emt 0:03:07]} exf4 {[%emt 0:00:02]} 16. Qd2 {[%emt 0:02:50]} Bxe4 {[%emt 0:02:43]} 17. Rxe4 {[%emt 0:01:23]} Rxe4 {[%emt 0:00:02]} 18. dxe4 {[%emt 0:00:14]} Qxd2 {[%emt 0:00:10]} 19. Nxd2 {[%emt 0:00:07]} Ne5 {[%emt 0:00:35]} 20. Rd1 {[%emt 0:15:36]} Rd8 {[%emt 0:06:36]} 21. Kf1 {[%emt 0:00:57]} g5 {[%emt 0:00:51]} 22. Ke2 {[%emt 0:02:36]} g4 {[%emt 0:03:18]} 23. f3 {[%emt 0:01:39]} g3 {[%emt 0:03:34]} 24. Bd5 {[%emt 0:04:08]} Ng6 {[%emt 0:05:59]} 25. Nc4 {[%emt 0:04:08]} Kg7 {[%emt 0:00:39]} 26. Nxb6 {[%emt 0:01:24]} axb6 {[%emt 0:00:21]} 27. Rd4 {[%emt 0:00:48]} c6 {[%emt 0:04:40]} 28. Bb3 {[%emt 0:00:15]} Rxd4 {[%emt 0:01:26]} 29. cxd4 {[%emt 0:00:05]} c5 {[%emt 0:00:02]} 30. d5 {[%emt 0:02:34]} Ne5 {[%emt 0:01:13]} 31. d6 {[%emt 0:00:47]} Kf8 {[%emt 0:00:38]} 32. Bd5 {[%emt 0:01:01]} Ke8 {[%emt 0:00:08]} 33. b3 {[%emt 0:00:30]} Kd7 {[%emt 0:03:08]} 34. Bxb7 {[%emt 0:00:37]} Kxd6 {[%emt 0:00:03]} 35. Bd5 {[%emt 0:00:12]} f6 {[%emt 0:03:27]} 36. Bc4 {[%emt 0:00:28]} Kc6 {[%emt 0:01:21]} 37. Ke1 {[%emt 0:01:01]} b5 {[%emt 0:01:31]} 38. Be2 {[%emt 0:00:12]} b4 {[%emt 0:05:18]} 39. Kd2 {[%emt 0:00:21]} c4 {[%emt 0:00:36]} 40. Bxc4 {[%emt 0:08:51]} Nxf3+ {[%emt 0:00:09]} 41. Ke2 {[%emt 0:30:15]} Ne5 {[%emt 0:30:19]} 42. Kd2 {[%emt 0:05:51]} Nxc4+ {[%emt 0:01:05]} 43. bxc4 {[%emt 0:00:08]} f3 {[%emt 0:00:01]} 0-1

[Event "ESP-chT Div I 2018"]
[Site "Linares"]
[Date "2018.08.07"]
[Round "2"]
[White "Vega Gutierrez, Belinda Vidina"]
[Black "Prado Acebo, Ines"]
[Result "0-1"]
[ECO "C03"]
[WhiteElo "2165"]
[BlackElo "2084"]
[Annotator "NA"]
[PlyCount "120"]
[EventDate "2018.08.06"]
[EventType "team-tourn"]
[EventCountry "ESP"]
[SourceTitle "playchess.com"]
[Source "ChessBase"]
[SourceQuality "1"]
[TimeControl "40/5400+30:1800+30"]

1. e4 {[%emt 0:00:00]} e6 {[%emt 0:00:00]} 2. d4 {[%emt 0:00:00]} d5 {[%emt 0:00:00]} 3. Nd2 {[%emt 0:00:00]} Be7 {[%emt 0:00:45]} 4. Ngf3 {[%emt 0:00:22]} Nf6 {[%emt 0:00:19]} 5. e5 {[%emt 0:03:00]} Nfd7 {[%emt 0:00:07]} 6. Bd3 {[%emt 0:01:06]} c5 {[%emt 0:00:11]} 7. O-O {[%emt 0:03:26]} cxd4 {[%emt 0:04:49]} 8. Re1 {[%emt 0:00:53]} Nc6 {[%emt 0:01:01]} 9. Nb3 {[%emt 0:06:37]} Qc7 {[%emt 0:11:45]} 10. Bf4 {[%emt 0:09:38]} Bb4 {[%emt 0:06:44]} 11. Re2 {[%emt 0:06:39]} Qb6 {[%emt 0:09:50]} 12. h4 {[%emt 0:15:36]} a6 {[%emt 0:12:56]} 13. h5 {[%emt 0:11:50]} Qa7 {[%emt 0:04:06]} 14. g3 {[%emt 0:06:37]} b5 {[%emt 0:07:22]} 15. Kg2 {[%emt 0:13:27]} Bb7 {[%emt 0:12:18]} 16. Qh1 {[%emt 0:00:43]} Qb6 {[%emt 0:01:11]} 17. Qh4 {[%emt 0:01:45]} Nc5 {[%emt 0:04:41]} 18. Nxc5 {[%emt 0:00:59]} Bxc5 {[%emt 0:00:04]} 19. Qg5 {[%emt 0:03:15]} Bf8 {[%emt 0:02:39]} 20. Bd2 {[%emt 0:01:51]} Rc8 {[%emt 0:04:49]} 21. Qf4 {[%emt 0:01:48]} h6 {[%emt 0:04:40]} 22. g4 {[%emt 0:05:08]} Be7 {[%emt 0:04:22]} 23. Rh1 {[%emt 0:02:54]} Qc7 {[%emt 0:01:15]} 24. g5 {[%emt 0:01:26]} Kd7 {[%emt 0:00:40]} 25. Rh3 {[%emt 0:02:28]} Rcf8 {[%emt 0:00:59]} 26. gxh6 {[%emt 0:00:34]} gxh6 {[%emt 0:00:39]} 27. Rg3 {[%emt 0:00:04]} f6 {[%emt 0:02:37]} 28. Rg6 {[%emt 0:01:08]} fxe5 {[%emt 0:01:21]} 29. Qg4 {[%emt 0:00:01]} Rf6 {[%emt 0:01:24]} 30. Bxh6 {[%emt 0:01:04]} Rxh6 {[%emt 0:00:17]} 31. Rxh6 {[%emt 0:00:16]} Rxh6 {[%emt 0:00:02]} 32. Qg7 {[%emt 0:00:44]} Rxh5 {[%emt 0:00:25]} 33. Bg6 {[%emt 0:00:02]} e4 {[%emt 0:00:25]} 34. Bxh5 {[%emt 0:00:18]} exf3+ {[%emt 0:00:13]} 35. Bxf3 {[%emt 0:00:08]} Qf4 {[%emt 0:00:54]} 36. Bg4 {[%emt 0:00:55]} Nd8 {[%emt 0:00:09]} 37. f3 {[%emt 0:00:24]} Qf6 {[%emt 0:01:15]} 38. Qh7 {[%emt 0:00:15]} Bc8 {[%emt 0:00:12]} 39. Qd3 {[%emt 0:01:21]} Kc7 {[%emt 0:00:21]} 40. Qb3 {[%emt 0:00:33]} Bd6 {[%emt 0:00:35]} 41. a4 {[%emt 0:30:23]} Qf4 {[%emt 0:31:04]} 42. axb5 {[%emt 0:00:32]} Qh2+ {[%emt 0:00:40]} 43. Kf1 {[%emt 0:00:01]} Qh1+ {[%emt 0:00:01]} 44. Kf2 {[%emt 0:00:02]} Be7 {[%emt 0:00:56]} 45. Kg3 {[%emt 0:01:34]} Bd6+ {[%emt 0:00:40]} 46. Kf2 {[%emt 0:00:09]} Qh4+ {[%emt 0:00:29]} 47. Kf1 {[%emt 0:00:27]} Bg3 {[%emt 0:00:30]} 48. Rg2 {[%emt 0:00:02]} axb5 {[%emt 0:00:33]} 49. Qxb5 {[%emt 0:00:16]} Nc6 {[%emt 0:00:13]} 50. Qc5 {[%emt 0:01:07]} Qh1+ {[%emt 0:00:33]} 51. Rg1 {[%emt 0:00:04]} Ba6+ {[%emt 0:00:06]} 52. c4 {[%emt 0:00:27]} Bxc4+ {[%emt 0:00:09]} 53. Qxc4 {[%emt 0:00:02]} Qxg1+ {[%emt 0:00:07]} 54. Kxg1 {[%emt 0:00:02]} dxc4 {[%emt 0:00:08]} 55. Bxe6 {[%emt 0:00:04]} Ne5 {[%emt 0:00:41]} 56. Kf1 {[%emt 0:00:13]} Kd6 {[%emt 0:01:00]} 57. Bg8 {[%emt 0:00:17]} Bf4 {[%emt 0:00:16]} 58. Ke2 {[%emt 0:00:08]} Kc5 {[%emt 0:00:11]} 59. Kd1 {[%emt 0:02:04]} Kb4 {[%emt 0:00:08]} 60. Kc2 {[%emt 0:00:45]} d3+ {[%emt 0:00:36]} 0-1

[Event "ESP-chT Div I 2018"]
[Site "Linares"]
[Date "2018.08.07"]
[Round "2"]
[White "Garcia Perez, Javier"]
[Black "Gutierrez Olivares, Daniel"]
[Result "0-1"]
[ECO "C41"]
[WhiteElo "2090"]
[BlackElo "2297"]
[Annotator "NA"]
[PlyCount "38"]
[EventDate "2018.08.06"]
[EventType "team-tourn"]
[EventCountry "ESP"]
[SourceTitle "playchess.com"]
[Source "ChessBase"]
[SourceQuality "1"]
[TimeControl "40/5400+30:1800+30"]

1. e4 {[%emt 0:00:00]} d6 {[%emt 0:00:00]} 2. d4 {[%emt 0:00:00]} Nf6 {[%emt 0:00:20]} 3. Nc3 {[%emt 0:00:02]} e5 {[%emt 0:00:32]} 4. Nf3 {[%emt 0:00:13]} Nbd7 {[%emt 0:00:19]} 5. Bc4 {[%emt 0:00:42]} Be7 {[%emt 0:00:38]} 6. O-O {[%emt 0:00:33]} O-O {[%emt 0:00:27]} 7. Re1 {[%emt 0:00:43]} c6 {[%emt 0:01:05]} 8. a4 {[%emt 0:01:11]} exd4 {[%emt 0:02:13]} 9. Nxd4 {[%emt 0:00:24]} Ne5 {[%emt 0:01:51]} 10. Ba2 {[%emt 0:03:09]} Re8 {[%emt 0:00:54]} 11. h3 {[%emt 0:00:40]} Bd7 {[%emt 0:02:03]} 12. f4 {[%emt 0:28:46]} Ng6 {[%emt 0:00:08]} 13. g4 {[%emt 0:00:06]} h6 {[%emt 0:40:48]} 14. Qf3 {[%emt 0:25:11]} d5 {[%emt 0:13:45]} 15. exd5 {[%emt 0:06:29]} Qb6 {[%emt 0:00:47]} 16. Be3 {[%emt 0:00:34]} Bc5 {[%emt 0:01:33]} 17. a5 {[%emt 0:03:16]} Qb4 {[%emt 0:02:12]} 18. Red1 {[%emt 0:03:48]} Nh4 {[%emt 0:01:47]} 19. Qf2 {[%emt 0:06:35]} Rxe3 {[%emt 0:01:00]} 0-1

[Event "ESP-chT Div I 2018"]
[Site "Linares"]
[Date "2018.08.07"]
[Round "2"]
[White "Martin Capitan, Feliciano"]
[Black "Aranaz Murillo, Amalia"]
[Result "0-1"]
[ECO "B13"]
[WhiteElo "2066"]
[BlackElo "2227"]
[Annotator "NA"]
[PlyCount "54"]
[EventDate "2018.08.06"]
[EventType "team-tourn"]
[EventCountry "ESP"]
[SourceTitle "playchess.com"]
[Source "ChessBase"]
[SourceQuality "1"]
[TimeControl "40/5400+30:1800+30"]

1. e4 {[%emt 0:00:00]} c6 {[%emt 0:00:00]} 2. d4 {[%emt 0:00:00]} d5 {[%emt 0:00:00]} 3. exd5 {[%emt 0:00:15]} cxd5 {[%emt 0:00:00]} 4. Bf4 {[%emt 0:06:10]} Nc6 {[%emt 0:01:58]} 5. c3 {[%emt 0:00:52]} Nf6 {[%emt 0:02:36]} 6. Nf3 {[%emt 0:01:24]} Bf5 {[%emt 0:06:00]} 7. Nbd2 {[%emt 0:02:25]} e6 {[%emt 0:01:13]} 8. Qb3 {[%emt 0:03:16]} Qc8 {[%emt 0:08:23]} 9. Nh4 {[%emt 0:04:37]} Bg4 {[%emt 0:02:25]} 10. h3 {[%emt 0:03:05]} Bh5 {[%emt 0:00:07]} 11. g4 {[%emt 0:09:59]} Bg6 {[%emt 0:00:04]} 12. Nxg6 {[%emt 0:02:15]} hxg6 {[%emt 0:00:07]} 13. Bg2 {[%emt 0:00:30]} Qd7 {[%emt 0:07:43]} 14. Nf3 {[%emt 0:09:02]} Ne4 {[%emt 0:12:28]} 15. Ne5 {[%emt 0:06:30]} Nxe5 {[%emt 0:00:42]} 16. Bxe5 {[%emt 0:03:14]} Nd6 {[%emt 0:00:37]} 17. O-O {[%emt 0:08:29]} Nc4 {[%emt 0:05:22]} 18. Rfe1 {[%emt 0:04:24]} Rc8 {[%emt 0:06:11]} 19. f4 {[%emt 0:08:26]} f6 {[%emt 0:13:20]} 20. f5 {[%emt 0:00:25]} fxe5 {[%emt 0:00:39]} 21. fxe6 {[%emt 0:00:27]} Qc6 {[%emt 0:05:19]} 22. Bxd5 {[%emt 0:22:06]} Qxd5 {[%emt 0:02:44]} 23. e7 {[%emt 0:01:28]} Bxe7 {[%emt 0:03:09]} 24. Rxe5 {[%emt 0:00:21]} Qf3 {[%emt 0:03:01]} 25. Qb5+ {[%emt 0:00:37]} Qc6 {[%emt 0:00:25]} 26. Rxe7+ {[%emt 0:01:32]} Kxe7 {[%emt 0:00:05]} 27. Re1+ {[%emt 0:00:52]} Kd7 {[%emt 0:00:27]} 0-1

[Event "ESP-chT Div I 2018"]
[Site "Linares"]
[Date "2018.08.07"]
[Round "2"]
[White "Rodrigo Yanguas, Maria"]
[Black "Bermudez Revuelta, Paula"]
[Result "1-0"]
[ECO "A05"]
[WhiteElo "2062"]
[BlackElo "1887"]
[Annotator "NA"]
[PlyCount "115"]
[EventDate "2018.08.06"]
[EventType "team-tourn"]
[EventCountry "ESP"]
[SourceTitle "playchess.com"]
[Source "ChessBase"]
[SourceQuality "1"]
[TimeControl "40/5400+30:1800+30"]

1. Nf3 {[%emt 0:00:00]} Nf6 {[%emt 0:00:00]} 2. g3 {[%emt 0:00:00]} c5 {[%emt 0:00:28]} 3. Bg2 {[%emt 0:00:00]} g6 {[%emt 0:00:07]} 4. c4 {[%emt 0:01:35]} Bg7 {[%emt 0:00:08]} 5. O-O {[%emt 0:00:16]} d5 {[%emt 0:00:14]} 6. d4 {[%emt 0:06:34]} cxd4 {[%emt 0:06:05]} 7. cxd5 {[%emt 0:04:16]} Nxd5 {[%emt 0:01:26]} 8. Nxd4 {[%emt 0:01:49]} O-O {[%emt 0:01:49]} 9. Nb5 {[%emt 0:02:48]} Nb4 {[%emt 0:05:20]} 10. Qb3 {[%emt 0:06:14]} Qa5 {[%emt 0:07:11]} 11. N1a3 {[%emt 0:16:45]} a6 {[%emt 0:10:02]} 12. Bd2 {[%emt 0:07:47]} axb5 {[%emt 0:08:07]} 13. Bxb4 {[%emt 0:01:17]} Qa4 {[%emt 0:03:56]} 14. Rad1 {[%emt 0:03:28]} Qxb3 {[%emt 0:06:10]} 15. axb3 {[%emt 0:00:15]} Bxb2 {[%emt 0:05:02]} 16. Nxb5 {[%emt 0:00:35]} Bf6 {[%emt 0:15:21]} 17. Nc7 {[%emt 0:01:40]} Ra2 {[%emt 0:01:36]} 18. Nd5 {[%emt 0:05:30]} Re8 {[%emt 0:00:45]} 19. Bxe7 {[%emt 0:07:26]} Bxe7 {[%emt 0:03:53]} 20. Nxe7+ {[%emt 0:00:04]} Rxe7 {[%emt 0:00:40]} 21. Rd8+ {[%emt 0:00:06]} Kg7 {[%emt 0:00:07]} 22. Rxc8 {[%emt 0:00:05]} Nc6 {[%emt 0:00:42]} 23. e3 {[%emt 0:05:38]} Rb2 {[%emt 0:01:12]} 24. Bd5 {[%emt 0:01:32]} Rd7 {[%emt 0:01:56]} 25. e4 {[%emt 0:05:14]} Nd4 {[%emt 0:01:24]} 26. Rd1 {[%emt 0:00:54]} Nf3+ {[%emt 0:02:51]} 27. Kg2 {[%emt 0:00:55]} Ne5 {[%emt 0:01:23]} 28. h3 {[%emt 0:01:34]} Re2 {[%emt 0:04:56]} 29. Re8 {[%emt 0:03:52]} Nc6 {[%emt 0:01:09]} 30. Kf3 {[%emt 0:00:14]} Rb2 {[%emt 0:00:54]} 31. Ke3 {[%emt 0:01:46]} Nb4 {[%emt 0:02:09]} 32. Kd4 {[%emt 0:08:38]} Rxf2 {[%emt 0:01:58]} 33. Kc5 {[%emt 0:01:53]} Nc6 {[%emt 0:02:07]} 34. Rc1 {[%emt 0:00:32]} Rf3 {[%emt 0:01:03]} 35. Bxc6 {[%emt 0:02:02]} Rc7 {[%emt 0:00:56]} 36. Kd6 {[%emt 0:01:49]} Rxc6+ {[%emt 0:00:13]} 37. Rxc6 {[%emt 0:00:04]} Rd3+ {[%emt 0:02:38]} 38. Ke7 {[%emt 0:02:50]} bxc6 {[%emt 0:00:01]} 39. Rf8 {[%emt 0:00:15]} f5 {[%emt 0:01:59]} 40. Rf7+ {[%emt 0:00:21]} Kg8 {[%emt 0:01:04]} 41. Rf8+ {[%emt 0:30:12]} Kg7 {[%emt 0:30:04]} 42. Rf7+ {[%emt 0:00:29]} Kg8 {[%emt 0:00:13]} 43. e5 {[%emt 0:01:13]} Rxb3 {[%emt 0:00:40]} 44. Kf6 {[%emt 0:00:22]} c5 {[%emt 0:00:41]} 45. e6 {[%emt 0:00:23]} Rb6 {[%emt 0:00:18]} 46. Rc7 {[%emt 0:00:23]} h5 {[%emt 0:00:48]} 47. Rxc5 {[%emt 0:00:26]} h4 {[%emt 0:00:34]} 48. gxh4 {[%emt 0:00:39]} f4 {[%emt 0:00:07]} 49. Rc4 {[%emt 0:00:32]} f3 {[%emt 0:01:14]} 50. Rf4 {[%emt 0:00:04]} Kf8 {[%emt 0:00:38]} 51. Rxf3 {[%emt 0:00:08]} Ke8 {[%emt 0:00:36]} 52. Ra3 {[%emt 0:00:30]} Kd8 {[%emt 0:00:10]} 53. Ra7 {[%emt 0:00:36]} Kc8 {[%emt 0:00:47]} 54. Kf7 {[%emt 0:00:16]} Rb4 {[%emt 0:00:21]} 55. e7 {[%emt 0:00:50]} Rf4+ {[%emt 0:00:33]} 56. Kxg6 {[%emt 0:00:13]} Re4 {[%emt 0:00:13]} 57. e8=Q+ {[%emt 0:00:23]} Rxe8 {[%emt 0:00:06]} 58. Ra8+ {[%emt 0:00:03]} 1-0

[Event "ESP-chT Div I 2018"]
[Site "Linares"]
[Date "2018.08.07"]
[Round "2"]
[White "Vergara Anton, Diego"]
[Black "Rubio Mejia, Luis Ignacio"]
[Result "1/2-1/2"]
[ECO "E17"]
[WhiteElo "2022"]
[BlackElo "2442"]
[Annotator "NA"]
[PlyCount "62"]
[EventDate "2018.08.06"]
[EventType "team-tourn"]
[EventCountry "ESP"]
[SourceTitle "playchess.com"]
[Source "ChessBase"]
[SourceQuality "1"]
[TimeControl "40/5400+30:1800+30"]

1. d4 {[%emt 0:00:00]} Nf6 {[%emt 0:00:00]} 2. Nf3 {[%emt 0:00:00]} e6 {[%emt 0:00:02]} 3. g3 {[%emt 0:00:00]} b6 {[%emt 0:03:46]} 4. Bg2 {[%emt 0:00:51]} Bb7 {[%emt 0:00:08]} 5. O-O {[%emt 0:01:06]} Be7 {[%emt 0:00:10]} 6. c4 {[%emt 0:01:40]} O-O {[%emt 0:00:37]} 7. b3 {[%emt 0:02:37]} c5 {[%emt 0:07:54]} 8. Bb2 {[%emt 0:02:39]} cxd4 {[%emt 0:03:45]} 9. Nxd4 {[%emt 0:03:30]} Bxg2 {[%emt 0:00:51]} 10. Kxg2 {[%emt 0:00:01]} Qc8 {[%emt 0:05:48]} 11. Nd2 {[%emt 0:04:55]} a6 {[%emt 0:12:58]} 12. e3 {[%emt 0:07:22]} Ra7 {[%emt 0:08:30]} 13. Qf3 {[%emt 0:04:30]} Rc7 {[%emt 0:05:40]} 14. Rac1 {[%emt 0:06:17]} d6 {[%emt 0:02:56]} 15. Nc2 {[%emt 0:14:24]} Nbd7 {[%emt 0:09:57]} 16. Bxf6 {[%emt 0:06:33]} Nxf6 {[%emt 0:05:22]} 17. Nd4 {[%emt 0:06:46]} b5 {[%emt 0:07:54]} 18. Rc2 {[%emt 0:04:47]} d5 {[%emt 0:12:44]} 19. Rfc1 {[%emt 0:00:16]} Ba3 {[%emt 0:00:56]} 20. Rb1 {[%emt 0:08:07]} bxc4 {[%emt 0:03:55]} 21. bxc4 {[%emt 0:01:19]} dxc4 {[%emt 0:00:37]} 22. Rc3 {[%emt 0:02:49]} Bc5 {[%emt 0:03:58]} 23. Rbc1 {[%emt 0:07:32]} Bxd4 {[%emt 0:01:14]} 24. exd4 {[%emt 0:00:02]} Qd8 {[%emt 0:01:16]} 25. Rxc4 {[%emt 0:01:22]} Rd7 {[%emt 0:00:08]} 26. Nb3 {[%emt 0:00:39]} Rd5 {[%emt 0:00:50]} 27. Rc5 {[%emt 0:00:46]} h6 {[%emt 0:00:56]} 28. Rxd5 {[%emt 0:01:18]} Nxd5 {[%emt 0:00:14]} 29. Nc5 {[%emt 0:01:51]} Qa5 {[%emt 0:00:37]} 30. Qe2 {[%emt 0:04:47]} Qb4 {[%emt 0:00:42]} 31. Qd3 {[%emt 0:02:49]} Ra8 {[%emt 0:00:27]} 1/2-1/2

[Event "ESP-chT Div I 2018"]
[Site "Linares"]
[Date "2018.08.07"]
[Round "2"]
[White "Gonzalez Guedes, Iyan"]
[Black "Vazquez Torres, Adrian"]
[Result "0-1"]
[ECO "B50"]
[WhiteElo "1925"]
[BlackElo "2174"]
[Annotator "NA"]
[PlyCount "68"]
[EventDate "2018.08.06"]
[EventType "team-tourn"]
[EventCountry "ESP"]
[SourceTitle "playchess.com"]
[Source "ChessBase"]
[SourceQuality "1"]
[TimeControl "40/5400+30:1800+30"]

1. e4 {[%emt 0:00:00]} c5 {[%emt 0:00:00]} 2. Nf3 {[%emt 0:00:00]} d6 {[%emt 0:00:00]} 3. c3 {[%emt 0:00:00]} Nf6 {[%emt 0:00:34]} 4. Bd3 {[%emt 0:00:13]} g6 {[%emt 0:00:54]} 5. O-O {[%emt 0:00:47]} Bg7 {[%emt 0:00:15]} 6. Bc2 {[%emt 0:00:40]} O-O {[%emt 0:00:16]} 7. h3 {[%emt 0:01:15]} Nc6 {[%emt 0:02:50]} 8. d4 {[%emt 0:01:37]} e5 {[%emt 0:06:37]} 9. dxe5 {[%emt 0:07:53]} dxe5 {[%emt 0:00:07]} 10. Be3 {[%emt 0:00:10]} b6 {[%emt 0:01:23]} 11. Nbd2 {[%emt 0:02:49]} Ba6 {[%emt 0:01:41]} 12. Re1 {[%emt 0:02:06]} Qc7 {[%emt 0:01:20]} 13. a3 {[%emt 0:04:13]} c4 {[%emt 0:02:06]} 14. Qe2 {[%emt 0:06:00]} Na5 {[%emt 0:03:14]} 15. Bb1 {[%emt 0:15:41]} Bb7 {[%emt 0:02:00]} 16. Ba2 {[%emt 0:05:03]} Rac8 {[%emt 0:02:35]} 17. Bg5 {[%emt 0:03:21]} h6 {[%emt 0:20:58]} 18. Bh4 {[%emt 0:04:18]} Nh5 {[%emt 0:01:58]} 19. Red1 {[%emt 0:11:02]} Nf4 {[%emt 0:05:59]} 20. Qe3 {[%emt 0:03:41]} f5 {[%emt 0:06:58]} 21. g3 {[%emt 0:09:40]} Nxh3+ {[%emt 0:06:58]} 22. Kh2 {[%emt 0:01:06]} Nxf2 {[%emt 0:01:00]} 23. Qxf2 {[%emt 0:01:15]} fxe4 {[%emt 0:00:07]} 24. b4 {[%emt 0:02:16]} cxb3 {[%emt 0:00:41]} 25. Nxb3 {[%emt 0:00:06]} Nxb3 {[%emt 0:00:27]} 26. Bxb3+ {[%emt 0:00:07]} Kh7 {[%emt 0:00:11]} 27. Be6 {[%emt 0:03:51]} Rxf3 {[%emt 0:00:42]} 28. Qa2 {[%emt 0:03:30]} Rcf8 {[%emt 0:00:32]} 29. g4 {[%emt 0:01:41]} Qxc3 {[%emt 0:01:14]} 30. g5 {[%emt 0:02:00]} Qe3 {[%emt 0:00:32]} 31. Kg2 {[%emt 0:01:32]} Qf4 {[%emt 0:01:54]} 32. Rd7 {[%emt 0:02:45]} Qxh4 {[%emt 0:00:12]} 33. Rxg7+ {[%emt 0:00:47]} Kxg7 {[%emt 0:00:09]} 34. gxh6+ {[%emt 0:00:08]} Kh8 {[%emt 0:00:15]} 0-1

[Event "ESP-chT Div I 2018"]
[Site "Linares"]
[Date "2018.08.08"]
[Round "3"]
[White "Quesada Perez, Yasser"]
[Black "Plazuelo Pascual, Juan"]
[Result "1/2-1/2"]
[ECO "C00"]
[WhiteElo "2534"]
[BlackElo "2429"]
[Annotator "ChessBase"]
[PlyCount "86"]
[EventDate "2018.08.06"]
[EventType "team-tourn"]
[EventCountry "ESP"]
[SourceTitle "playchess.com"]
[Source "ChessBase"]
[SourceQuality "1"]
[TimeControl "40/5400+30:1800+30"]

1. e4 {[%emt 0:00:00]} e6 {[%emt 0:00:00]} 2. d4 {[%emt 0:00:00]} d5 {[%emt 0:00:00]} 3. Bd3 {[%emt 0:00:06]} dxe4 {[%emt 0:00:42]} 4. Bxe4 {[%emt 0:00:06]} Nf6 {[%emt 0:00:07]} 5. Bf3 {[%emt 0:00:03]} c5 {[%emt 0:00:44]} 6. Ne2 {[%emt 0:00:08]} Nc6 {[%emt 0:00:43]} 7. Be3 {[%emt 0:00:11]} cxd4 {[%emt 0:00:23]} 8. Nxd4 {[%emt 0:00:06]} Ne5 {[%emt 0:00:05]} 9. Nc3 {[%emt 0:00:11]} Bb4 {[%emt 0:03:18]} 10. Ndb5 {[%emt 0:00:26]} Bd7 {[%emt 0:01:37]} 11. a3 {[%emt 0:00:16]} Bxc3+ {[%emt 0:00:30]} 12. Nxc3 {[%emt 0:00:06]} Bc6 {[%emt 0:00:37]} 13. Bxc6+ {[%emt 0:06:55]} Nxc6 {[%emt 0:00:39]} 14. Bg5 {[%emt 0:05:45]} h6 {[%emt 0:20:11]} 15. Bh4 {[%emt 0:01:54]} Qxd1+ {[%emt 0:05:07]} 16. Rxd1 {[%emt 0:00:09]} Ke7 {[%emt 0:00:18]} 17. f4 {[%emt 0:14:06]} Rhd8 {[%emt 0:15:10]} 18. O-O {[%emt 0:01:17]} b6 {[%emt 0:06:07]} 19. f5 {[%emt 0:10:53]} Rxd1 {[%emt 0:06:16]} 20. Rxd1 {[%emt 0:00:10]} Rd8 {[%emt 0:01:53]} 21. Rxd8 {[%emt 0:02:13]} Nxd8 {[%emt 0:01:01]} 22. Ne4 {[%emt 0:01:09]} exf5 {[%emt 0:02:36]} 23. Nxf6 {[%emt 0:01:14]} gxf6 {[%emt 0:01:57]} 24. Kf2 {[%emt 0:01:27]} Ke6 {[%emt 0:02:05]} 25. Bg3 {[%emt 0:11:26]} Nc6 {[%emt 0:02:59]} 26. Bf4 {[%emt 0:00:17]} Ne5 {[%emt 0:01:20]} 27. Kg3 {[%emt 0:11:55]} h5 {[%emt 0:01:01]} 28. Bd2 {[%emt 0:00:25]} Ng6 {[%emt 0:01:41]} 29. c4 {[%emt 0:00:08]} Ke5 {[%emt 0:03:59]} 30. Bc3+ {[%emt 0:01:02]} Ke6 {[%emt 0:01:00]} 31. Bd2 {[%emt 0:19:37]} Ke5 {[%emt 0:02:14]} 32. Bc3+ {[%emt 0:10:09]} Ke6 {[%emt 0:00:06]} 33. b4 {[%emt 0:00:04]} f4+ {[%emt 0:01:43]} 34. Kh3 Ne5 {[%emt 0:03:51]} 35. c5 {[%emt 0:00:46]} bxc5 {[%emt 0:00:08]} 36. b5 {[%emt 0:01:20]} f3 {[%emt 0:06:28]} 37. gxf3 {[%emt 0:00:11]} Nxf3 {[%emt 0:00:02]} 38. a4 {[%emt 0:00:46]} Nd4 {[%emt 0:04:05]} 39. Kh4 {[%emt 0:00:26]} Nf3+ {[%emt 0:01:03]} 40. Kg3 {[%emt 0:00:01]} Nd4 {[%emt 0:00:19]} 41. Kh4 {[%emt 0:30:01]} Nf3+ {[%emt 0:30:08]} 42. Kg3 {[%emt 0:00:03]} Nd4 {[%emt 0:00:03]} 43. Kh4 {[%emt 0:03:18]} Ke5 1/2-1/2

[Event "ESP-chT Div I 2018"]
[Site "Linares"]
[Date "2018.08.08"]
[Round "3"]
[White "Alsina Leal, Daniel"]
[Black "Tejedor Fuente, Enrique"]
[Result "1-0"]
[ECO "C04"]
[WhiteElo "2480"]
[BlackElo "2408"]
[Annotator "ChessBase"]
[PlyCount "61"]
[EventDate "2018.08.06"]
[EventType "team-tourn"]
[EventCountry "ESP"]
[SourceTitle "playchess.com"]
[Source "ChessBase"]
[SourceQuality "1"]
[TimeControl "40/5400+30:1800+30"]

1. e4 {[%emt 0:00:00]} e6 {[%emt 0:00:12]} 2. d4 {[%emt 0:00:00]} d5 {[%emt 0:00:08]} 3. Nd2 {[%emt 0:00:00]} Nc6 {[%emt 0:00:38]} 4. Ngf3 {[%emt 0:00:00]} Nf6 {[%emt 0:00:25]} 5. e5 {[%emt 0:00:14]} Nd7 {[%emt 0:00:05]} 6. Nb3 {[%emt 0:00:31]} f6 {[%emt 0:06:37]} 7. Bb5 {[%emt 0:02:06]} fxe5 {[%emt 0:09:07]} 8. dxe5 {[%emt 0:00:13]} Qe7 {[%emt 0:07:16]} 9. O-O {[%emt 0:06:41]} Nb6 {[%emt 0:05:56]} 10. a4 {[%emt 0:17:21]} Bd7 {[%emt 0:06:22]} 11. a5 {[%emt 0:01:08]} Nc8 {[%emt 0:12:26]} 12. a6 {[%emt 0:13:55]} b6 {[%emt 0:16:10]} 13. c4 {[%emt 0:03:24]} Nb4 {[%emt 0:00:01]} 14. Bd2 {[%emt 0:23:52]} c6 {[%emt 0:02:07]} 15. cxd5 {[%emt 0:02:11]} Nxd5 {[%emt 0:02:26]} 16. Bc4 {[%emt 0:07:19]} c5 {[%emt 0:11:16]} 17. Bxd5 {[%emt 0:02:34]} exd5 {[%emt 0:00:07]} 18. e6 {[%emt 0:03:29]} Bc6 {[%emt 0:02:45]} 19. Nbd4 {[%emt 0:04:26]} cxd4 {[%emt 0:06:41]} 20. Nxd4 {[%emt 0:00:15]} Qc7 {[%emt 0:00:00]} 21. Qf3 {[%emt 0:03:06]} Bc5 {[%emt 0:05:13]} 22. Nxc6 {[%emt 0:00:32]} Qxc6 {[%emt 0:00:29]} 23. Qf7+ {[%emt 0:02:58]} Kd8 {[%emt 0:00:00]} 24. Rac1 {[%emt 0:00:28]} Nd6 {[%emt 0:01:23]} 25. Qxg7 {[%emt 0:02:50]} Re8 {[%emt 0:01:45]} 26. b4 {[%emt 0:00:09]} Nc4 {[%emt 0:02:35]} 27. bxc5 {[%emt 0:00:21]} Nxd2 {[%emt 0:00:49]} 28. cxb6 {[%emt 0:01:29]} Nc4 {[%emt 0:00:00]} 29. b7 {[%emt 0:00:20]} Rxe6 {[%emt 0:00:59]} 30. Rxc4 {[%emt 0:01:15]} dxc4 {[%emt 0:00:15]} 31. Rd1+ {[%emt 0:00:32]} 1-0